fUSD/lending_fUSD_20260506
["ID","MTS","AMOUNT","RATE_DAILY","PERIOD"]
[421706471,1778049240000,-700.0,0.00041844,120]
[421706474,1778049240000,-215.64,0.00041884,120]
[421706480,1778049240000,-150.54233273,0.000419,120]
[421706485,1778049240000,-150.54233273,0.000419,120]
[421706483,1778049240000,-150.54233273,0.000419,120]
[421706484,1778049240000,-150.54233273,0.000419,120]
[421706481,1778049240000,-150.54233273,0.000419,120]
[421706482,1778049240000,-150.54233273,0.000419,120]
[421706475,1778049240000,-1046.98494811,0.00041884,30]
[421706473,1778049240000,-24999.0,0.0004188,60]
[421706479,1778049240000,-150.54233273,0.000419,120]
[421706513,1778049240000,-50000.0,0.00042,120]
[421706561,1778049240000,-840.424839,0.00042123,2]
[421706524,1778049240000,-500.0,0.00042,120]
[421706548,1778049240000,-243.725788,0.00042075,30]
[421706558,1778049240000,-1256.2826905,0.00042077,2]
[421706557,1778049240000,-1382.682312,0.00042075,120]
[421706549,1778049240000,-243.725788,0.00042075,30]
[421706552,1778049240000,-151.0,0.00042075,120]
[421706550,1778049240000,-243.725788,0.00042075,30]
[421706547,1778049240000,-707.2413,0.00042075,120]
[421706551,1778049240000,-243.725788,0.00042075,30]
[421706553,1778049240000,-211.592611,0.00042075,120]
[421706554,1778049240000,-1382.682312,0.00042075,120]
[421706555,1778049240000,-1382.682312,0.00042075,120]
[421706559,1778049240000,-500.0,0.00042108,102]
[421706560,1778049240000,-250.0,0.0004211,102]
[421706562,1778049240000,-152.92,0.00042126,120]
[421706563,1778049240000,-150.0,0.00042154,120]
[421706564,1778049240000,-150.0,0.00042154,120]
[421706569,1778049240000,-415.77,0.000422,30]
[421706567,1778049240000,-500.0,0.00042179,95]
[421706568,1778049240000,-1560.0,0.00042192,120]
[421706565,1778049240000,-150.0,0.00042154,120]
[421706566,1778049240000,-85624.50930566,0.00042156,72]
[421706571,1778049240000,-152.92,0.00042226,120]
[421706574,1778049240000,-2000.0,0.0004223,120]
[421706570,1778049240000,-408.0,0.00042202,10]
[421706572,1778049240000,-2000.0,0.0004223,120]
[421706518,1778049240000,-500.0,0.00042,45]
[421706573,1778049240000,-2000.0,0.0004223,120]
[421706545,1778049240000,-707.2413,0.00042075,120]
[421706544,1778049240000,-707.2413,0.00042075,120]
[421706556,1778049240000,-1382.682312,0.00042075,120]
[421706546,1778049240000,-707.2413,0.00042075,120]
[421706517,1778049240000,-500.0,0.00042,45]
[421706543,1778049240000,-151.0,0.00042075,120]
[421706523,1778049240000,-3000.0,0.00042,120]
[421706516,1778049240000,-500.0,0.00042,45]
[421706519,1778049240000,-44532.23226421,0.00042,120]
[421706514,1778049240000,-500.0,0.00042,45]
[421706520,1778049240000,-5005.65480192,0.00042,30]
[421706521,1778049240000,-1260.10021763,0.00042,30]
[421706522,1778049240000,-9443.27026721,0.00042,90]
[421706526,1778049240000,-152.92,0.00042026,120]
[421706525,1778049240000,-1383.34011487,0.0004201,2]
[421706527,1778049240000,-10626.36,0.00042026,14]
[421706529,1778049240000,-222298.0841114,0.00042075,2]
[421706530,1778049240000,-29835.8444842,0.00042075,2]
[421706515,1778049240000,-500.0,0.00042,45]
[421706542,1778049240000,-228.560938,0.00042075,120]
[421706532,1778049240000,-151.0,0.00042075,120]
[421706541,1778049240000,-151.0,0.00042075,120]
[421706539,1778049240000,-151.0,0.00042075,120]
[421706538,1778049240000,-180.104399,0.00042075,120]
[421706540,1778049240000,-151.0,0.00042075,120]
[421706536,1778049240000,-151.0,0.00042075,120]
[421706537,1778049240000,-180.104399,0.00042075,120]
[421706528,1778049240000,-260.68,0.00042026,14]
[421706531,1778049240000,-151.0,0.00042075,120]
[421706535,1778049240000,-180.104399,0.00042075,120]
[421706533,1778049240000,-180.104399,0.00042075,120]
[421706534,1778049240000,-151.0,0.00042075,120]
[421706610,1778049241000,-6657.2767579,0.00042463,2]
[421706616,1778049241000,-500.0,0.00042464,120]
[421706612,1778049241000,-13325.7879311,0.00042464,70]
[421706620,1778049241000,-500.0,0.00042464,120]
[421706615,1778049241000,-500.0,0.00042464,120]
[421706628,1778049241000,-500.0,0.00042464,120]
[421706609,1778049241000,-49601.4071084,0.00042463,2]
[421706601,1778049241000,-500.0,0.00042399,97]
[421706602,1778049241000,-418.0,0.00042418,2]
[421706618,1778049241000,-500.0,0.00042464,120]
[421706603,1778049241000,-152.92,0.00042426,120]
[421706611,1778049241000,-202.51179196,0.00042464,70]
[421706613,1778049241000,-500.0,0.00042464,120]
[421706634,1778049241000,-500.0,0.00042464,120]
[421706614,1778049241000,-500.0,0.00042464,120]
[421706619,1778049241000,-500.0,0.00042464,120]
[421706617,1778049241000,-500.0,0.00042464,120]
[421706623,1778049241000,-500.0,0.00042464,120]
[421706633,1778049241000,-259.20048071,0.00042464,120]
[421706622,1778049241000,-500.0,0.00042464,120]
[421706624,1778049241000,-500.0,0.00042464,120]
[421706625,1778049241000,-500.0,0.00042464,120]
[421706626,1778049241000,-500.0,0.00042464,120]
[421706629,1778049241000,-500.0,0.00042464,120]
[421706630,1778049241000,-500.0,0.00042464,120]
[421706606,1778049241000,-268.30951427,0.00042452,2]
[421706621,1778049241000,-500.0,0.00042464,120]
[421706605,1778049241000,-418.0,0.00042449,2]
[421706582,1778049241000,-150.0,0.00042278,120]
[421706600,1778049241000,-700.0,0.00042392,120]
[421706627,1778049241000,-500.0,0.00042464,120]
[421706575,1778049241000,-2000.0,0.0004223,120]
[421706581,1778049241000,-150.0,0.00042278,120]
[421706577,1778049241000,-47459.74175328,0.0004224,2]
[421706576,1778049241000,-2000.0,0.0004223,120]
[421706580,1778049241000,-150.0,0.00042278,120]
[421706578,1778049241000,-163.0,0.00042262,16]
[421706579,1778049241000,-1131.05,0.00042272,2]
[421706583,1778049241000,-153.0,0.000423,120]
[421706587,1778049241000,-40395.73987789,0.000423,40]
[421706586,1778049241000,-43867.11269224,0.000423,90]
[421706595,1778049241000,-161.0,0.0004237,120]
[421706594,1778049241000,-380.01609046,0.00042365,2]
[421706592,1778049241000,-189.47926864,0.00042364,120]
[421706585,1778049241000,-5432.2,0.000423,30]
[421706593,1778049241000,-3344.71432068,0.00042365,2]
[421706588,1778049241000,-152.92,0.00042326,120]
[421706589,1778049241000,-1142.1,0.00042347,120]
[421706584,1778049241000,-153.0,0.000423,120]
[421706591,1778049241000,-250.0,0.00042349,110]
[421706590,1778049241000,-500.0,0.00042347,110]
[421706597,1778049241000,-370.41,0.00042371,120]
[421706608,1778049241000,-500.0,0.00042463,70]
[421706607,1778049241000,-1047.08,0.00042458,2]
[421706599,1778049241000,-418.0,0.00042385,2]
[421706596,1778049241000,-243.07,0.00042371,120]
[421706598,1778049241000,-10553.52,0.00042383,15]
[421706604,1778049241000,-690.63,0.00042445,2]
[421706631,1778049241000,-509.69111078,0.00042464,120]
[421706642,1778049241000,-500.0,0.00042464,120]
[421706635,1778049241000,-500.0,0.00042464,120]
[421706669,1778049241000,-551.68,0.00042464,30]
[421706667,1778049241000,-507.14,0.00042464,7]
[421706672,1778049241000,-551.68,0.00042464,30]
[421706673,1778049241000,-551.78631548,0.00042464,30]
[421706670,1778049241000,-551.68,0.00042464,30]
[421706674,1778049241000,-500.0,0.00042464,11]
[421706671,1778049241000,-551.68,0.00042464,30]
[421706675,1778049241000,-500.0,0.00042464,31]
[421706677,1778049241000,-207.81902566,0.00042465,120]
[421706678,1778049241000,-175.7183207,0.00042465,120]
[421706676,1778049241000,-514.31533696,0.00042465,120]
[421706680,1778049241000,-500.0,0.00042465,120]
[421706682,1778049241000,-500.0,0.00042465,120]
[421706692,1778049241000,-4397.9,0.00042465,120]
[421706691,1778049241000,-4397.9,0.00042465,120]
[421706690,1778049241000,-4397.9,0.00042465,120]
[421706681,1778049241000,-500.0,0.00042465,120]
[421706687,1778049241000,-199.7696019,0.00042465,120]
[421706685,1778049241000,-500.0,0.00042465,120]
[421706684,1778049241000,-500.0,0.00042465,120]
[421706683,1778049241000,-500.0,0.00042465,120]
[421706689,1778049241000,-274.91411606,0.00042465,120]
[421706688,1778049241000,-362.44280552,0.00042465,120]
[421706686,1778049241000,-500.0,0.00042465,120]
[421706693,1778049241000,-4397.9,0.00042465,120]
[421706694,1778049241000,-4397.9,0.00042465,120]
[421706632,1778049241000,-500.0,0.00042464,120]
[421706668,1778049241000,-507.19074173,0.00042464,7]
[421706660,1778049241000,-564.76,0.00042464,120]
[421706679,1778049241000,-380.30899489,0.00042465,120]
[421706665,1778049241000,-507.14,0.00042464,7]
[421706639,1778049241000,-500.0,0.00042464,120]
[421706662,1778049241000,-564.76,0.00042464,120]
[421706637,1778049241000,-500.0,0.00042464,120]
[421706640,1778049241000,-500.0,0.00042464,120]
[421706636,1778049241000,-500.0,0.00042464,120]
[421706643,1778049241000,-500.0,0.00042464,120]
[421706638,1778049241000,-500.0,0.00042464,120]
[421706644,1778049241000,-500.0,0.00042464,120]
[421706641,1778049241000,-500.0,0.00042464,120]
[421706647,1778049241000,-500.0,0.00042464,120]
[421706648,1778049241000,-500.0,0.00042464,120]
[421706653,1778049241000,-500.0,0.00042464,90]
[421706649,1778049241000,-500.0,0.00042464,120]
[421706650,1778049241000,-500.0,0.00042464,120]
[421706645,1778049241000,-500.0,0.00042464,120]
[421706651,1778049241000,-500.0,0.00042464,120]
[421706661,1778049241000,-564.76,0.00042464,120]
[421706652,1778049241000,-592.7767285,0.00042464,120]
[421706659,1778049241000,-564.76,0.00042464,120]
[421706664,1778049241000,-507.14,0.00042464,7]
[421706663,1778049241000,-564.76255009,0.00042464,120]
[421706658,1778049241000,-510.6931762,0.00042464,90]
[421706666,1778049241000,-507.14,0.00042464,7]
[421706655,1778049241000,-500.0,0.00042464,90]
[421706656,1778049241000,-500.0,0.00042464,90]
[421706654,1778049241000,-500.0,0.00042464,90]
[421706646,1778049241000,-500.0,0.00042464,120]
[421706657,1778049241000,-500.0,0.00042464,90]
[421706737,1778049242000,-225.45067702,0.00042465,120]
[421706738,1778049242000,-2084.1,0.00042465,120]
[421706730,1778049242000,-221.41833105,0.00042465,120]
[421706724,1778049242000,-458.77587923,0.00042465,120]
[421706733,1778049242000,-186.94539984,0.00042465,120]
[421706734,1778049242000,-264.9032198,0.00042465,120]
[421706732,1778049242000,-282.83629198,0.00042465,120]
[421706729,1778049242000,-500.0,0.00042465,120]
[421706722,1778049242000,-500.0,0.00042465,120]
[421706741,1778049242000,-2084.1,0.00042465,120]
[421706731,1778049242000,-308.78779206,0.00042465,120]
[421706735,1778049242000,-188.82210204,0.00042465,120]
[421706749,1778049242000,-285.05489923,0.00042465,120]
[421706739,1778049242000,-2084.1,0.00042465,120]
[421706736,1778049242000,-182.80619076,0.00042465,120]
[421706743,1778049242000,-2084.1,0.00042465,120]
[421706753,1778049242000,-228.0435,0.00042465,120]
[421706742,1778049242000,-2084.1,0.00042465,120]
[421706747,1778049242000,-500.0,0.00042465,120]
[421706754,1778049242000,-273.02226282,0.00042465,120]
[421706746,1778049242000,-2084.1,0.00042465,120]
[421706745,1778049242000,-2084.1,0.00042465,120]
[421706744,1778049242000,-2084.1,0.00042465,120]
[421706748,1778049242000,-218.23723823,0.00042465,120]
[421706751,1778049242000,-266.80370449,0.00042465,120]
[421706716,1778049242000,-234.05182548,0.00042465,120]
[421706740,1778049242000,-2084.1,0.00042465,120]
[421706721,1778049242000,-252.1832496,0.00042465,120]
[421706697,1778049242000,-4397.9,0.00042465,120]
[421706725,1778049242000,-171.28207283,0.00042465,120]
[421706750,1778049242000,-372.22475689,0.00042465,120]
[421706696,1778049242000,-4397.9,0.00042465,120]
[421706695,1778049242000,-4397.9,0.00042465,120]
[421706698,1778049242000,-4397.9,0.00042465,120]
[421706699,1778049242000,-4397.9,0.00042465,120]
[421706702,1778049242000,-4397.9,0.00042465,120]
[421706700,1778049242000,-4397.9,0.00042465,120]
[421706703,1778049242000,-4397.9,0.00042465,120]
[421706701,1778049242000,-4397.9,0.00042465,120]
[421706705,1778049242000,-4397.9,0.00042465,120]
[421706707,1778049242000,-4397.9,0.00042465,120]
[421706704,1778049242000,-4397.9,0.00042465,120]
[421706715,1778049242000,-364.22504271,0.00042465,120]
[421706706,1778049242000,-4397.9,0.00042465,120]
[421706712,1778049242000,-4397.9,0.00042465,120]
[421706708,1778049242000,-4397.9,0.00042465,120]
[421706711,1778049242000,-4397.9,0.00042465,120]
[421706710,1778049242000,-4397.9,0.00042465,120]
[421706713,1778049242000,-4398.02004488,0.00042465,120]
[421706709,1778049242000,-4397.9,0.00042465,120]
[421706717,1778049242000,-363.88632683,0.00042465,120]
[421706728,1778049242000,-312.62636921,0.00042465,120]
[421706727,1778049242000,-181.98409784,0.00042465,120]
[421706718,1778049242000,-251.30268076,0.00042465,120]
[421706726,1778049242000,-156.17564085,0.00042465,120]
[421706720,1778049242000,-500.0,0.00042465,120]
[421706719,1778049242000,-158.22443044,0.00042465,120]
[421706723,1778049242000,-581.0879,0.00042465,120]
[421706752,1778049242000,-500.0,0.00042465,120]
[421706714,1778049242000,-229.12785433,0.00042465,120]
[421706766,1778049242000,-189.0980137,0.00042465,120]
[421706790,1778049242000,-586.1,0.00042465,120]
[421706792,1778049242000,-251.0116995,0.00042465,120]
[421706791,1778049242000,-211.94710245,0.00042465,120]
[421706789,1778049242000,-586.1,0.00042465,120]
[421706793,1778049242000,-182.98232718,0.00042465,120]
[421706799,1778049242000,-500.0,0.00042465,2]
[421706802,1778049242000,-500.0,0.00042465,120]
[421706801,1778049242000,-530.31007783,0.00042465,2]
[421706800,1778049242000,-271.22560942,0.00042465,11]
[421706794,1778049242000,-204.06481201,0.00042465,120]
[421706796,1778049242000,-236.99293103,0.00042465,120]
[421706803,1778049242000,-202.6908473,0.00042465,120]
[421706804,1778049242000,-270.14017798,0.00042465,120]
[421706795,1778049242000,-647.92513328,0.00042465,120]
[421706797,1778049242000,-188.60243868,0.00042465,120]
[421706798,1778049242000,-286.13673005,0.00042465,120]
[421706805,1778049242000,-209.91459436,0.00042465,120]
[421706806,1778049242000,-409.40141068,0.00042465,120]
[421706814,1778049242000,-2343.98,0.00042465,30]
[421706811,1778049242000,-2343.98,0.00042465,30]
[421706808,1778049242000,-211.32801174,0.00042465,120]
[421706809,1778049242000,-418.46203727,0.00042465,120]
[421706813,1778049242000,-2343.98,0.00042465,30]
[421706810,1778049242000,-2343.98,0.00042465,30]
[421706812,1778049242000,-2343.98,0.00042465,30]
[421706815,1778049242000,-2343.98,0.00042465,30]
[421706756,1778049242000,-175.67280197,0.00042465,120]
[421706788,1778049242000,-586.1,0.00042465,120]
[421706786,1778049242000,-586.1,0.00042465,120]
[421706807,1778049242000,-241.44759621,0.00042465,120]
[421706784,1778049242000,-586.1,0.00042465,120]
[421706787,1778049242000,-586.1,0.00042465,120]
[421706758,1778049242000,-500.0,0.00042465,120]
[421706761,1778049242000,-271.58347018,0.00042465,120]
[421706760,1778049242000,-273.57999425,0.00042465,120]
[421706763,1778049242000,-500.0,0.00042465,120]
[421706759,1778049242000,-306.68135249,0.00042465,120]
[421706762,1778049242000,-500.0,0.00042465,120]
[421706764,1778049242000,-609.18395638,0.00042465,120]
[421706755,1778049242000,-182.12375104,0.00042465,120]
[421706765,1778049242000,-171.10881733,0.00042465,120]
[421706778,1778049242000,-500.0,0.00042465,120]
[421706768,1778049242000,-206.44850788,0.00042465,120]
[421706774,1778049242000,-259.69578862,0.00042465,120]
[421706770,1778049242000,-455.5887729,0.00042465,120]
[421706757,1778049242000,-222.19898511,0.00042465,120]
[421706771,1778049242000,-500.0,0.00042465,120]
[421706785,1778049242000,-586.1,0.00042465,120]
[421706767,1778049242000,-305.63086426,0.00042465,120]
[421706781,1778049242000,-227.10524456,0.00042465,120]
[421706780,1778049242000,-622.20239761,0.00042465,120]
[421706782,1778049242000,-586.1,0.00042465,120]
[421706775,1778049242000,-412.25564674,0.00042465,120]
[421706783,1778049242000,-586.1,0.00042465,120]
[421706776,1778049242000,-581.21107004,0.00042465,120]
[421706773,1778049242000,-299.86949851,0.00042465,120]
[421706769,1778049242000,-500.0,0.00042465,120]
[421706779,1778049242000,-617.18435222,0.00042465,120]
[421706772,1778049242000,-500.0,0.00042465,120]
[421706777,1778049242000,-500.0,0.00042465,120]
[421706839,1778049243000,-2343.98,0.00042465,30]
[421706846,1778049243000,-276.45904597,0.00042465,120]
[421706849,1778049243000,-168.32272258,0.00042465,120]
[421706840,1778049243000,-2343.98,0.00042465,30]
[421706843,1778049243000,-205.3441167,0.00042465,120]
[421706848,1778049243000,-628.3179824,0.00042465,120]
[421706842,1778049243000,-2344.06749327,0.00042465,30]
[421706844,1778049243000,-532.46465239,0.00042465,120]
[421706851,1778049243000,-2042.51,0.00042465,120]
[421706845,1778049243000,-217.68951286,0.00042465,120]
[421706841,1778049243000,-2343.98,0.00042465,30]
[421706850,1778049243000,-209.72018003,0.00042465,120]
[421706852,1778049243000,-2042.51,0.00042465,120]
[421706853,1778049243000,-2042.51,0.00042465,120]
[421706856,1778049243000,-2042.51,0.00042465,120]
[421706855,1778049243000,-2042.51,0.00042465,120]
[421706838,1778049243000,-2343.98,0.00042465,30]
[421706847,1778049243000,-500.0,0.00042465,120]
[421706834,1778049243000,-2343.98,0.00042465,30]
[421706822,1778049243000,-2343.98,0.00042465,30]
[421706833,1778049243000,-2852.96,0.00042465,120]
[421706854,1778049243000,-2042.51,0.00042465,120]
[421706816,1778049243000,-2343.98,0.00042465,30]
[421706820,1778049243000,-2343.98,0.00042465,30]
[421706819,1778049243000,-2852.96,0.00042465,120]
[421706818,1778049243000,-2343.98,0.00042465,30]
[421706817,1778049243000,-2343.98,0.00042465,30]
[421706821,1778049243000,-2852.96,0.00042465,120]
[421706823,1778049243000,-2852.96,0.00042465,120]
[421706824,1778049243000,-2343.98,0.00042465,30]
[421706825,1778049243000,-2852.96,0.00042465,120]
[421706826,1778049243000,-2343.98,0.00042465,30]
[421706828,1778049243000,-2343.98,0.00042465,30]
[421706831,1778049243000,-2343.98,0.00042465,30]
[421706829,1778049243000,-2852.96,0.00042465,120]
[421706830,1778049243000,-2343.98,0.00042465,30]
[421706832,1778049243000,-2852.96,0.00042465,120]
[421706827,1778049243000,-2852.96,0.00042465,120]
[421706837,1778049243000,-2343.98,0.00042465,30]
[421706836,1778049243000,-2343.98,0.00042465,30]
[421706835,1778049243000,-2852.96,0.00042465,120]
[421706858,1778049243000,-2042.51,0.00042465,120]
[421706860,1778049243000,-2042.51,0.00042465,120]
[421706861,1778049243000,-2042.51,0.00042465,120]
[421706880,1778049243000,-155.35295437,0.00042465,120]
[421706886,1778049243000,-500.0,0.00042465,120]
[421706885,1778049243000,-500.0,0.00042465,120]
[421706890,1778049243000,-189.68472998,0.00042465,31]
[421706889,1778049243000,-500.0,0.00042465,120]
[421706891,1778049243000,-229.92549905,0.00042465,120]
[421706888,1778049243000,-500.0,0.00042465,120]
[421706887,1778049243000,-500.0,0.00042465,120]
[421706881,1778049243000,-500.0,0.00042465,120]
[421706893,1778049243000,-500.0,0.00042465,120]
[421706896,1778049243000,-500.0,0.00042465,120]
[421706894,1778049243000,-500.0,0.00042465,120]
[421706898,1778049243000,-500.0,0.00042465,120]
[421706901,1778049243000,-176.53493712,0.00042465,120]
[421706900,1778049243000,-500.0,0.00042465,120]
[421706899,1778049243000,-500.0,0.00042465,120]
[421706897,1778049243000,-500.0,0.00042465,120]
[421706857,1778049243000,-2042.51,0.00042465,120]
[421706892,1778049243000,-500.0,0.00042465,120]
[421706879,1778049243000,-296.10451819,0.00042465,120]
[421706895,1778049243000,-500.0,0.00042465,120]
[421706883,1778049243000,-500.0,0.00042465,120]
[421706859,1778049243000,-2042.51,0.00042465,120]
[421706878,1778049243000,-299.19344119,0.00042465,120]
[421706871,1778049243000,-2042.51,0.00042465,120]
[421706866,1778049243000,-2042.51,0.00042465,120]
[421706869,1778049243000,-2042.51,0.00042465,120]
[421706862,1778049243000,-2042.51,0.00042465,120]
[421706867,1778049243000,-2042.51,0.00042465,120]
[421706865,1778049243000,-303.97605187,0.00042465,120]
[421706863,1778049243000,-2042.51,0.00042465,120]
[421706868,1778049243000,-2042.51,0.00042465,120]
[421706872,1778049243000,-2042.51,0.00042465,120]
[421706864,1778049243000,-2042.51,0.00042465,120]
[421706882,1778049243000,-500.0,0.00042465,120]
[421706884,1778049243000,-500.0,0.00042465,120]
[421706875,1778049243000,-2042.68030461,0.00042465,120]
[421706873,1778049243000,-2042.51,0.00042465,120]
[421706877,1778049243000,-500.0,0.00042465,120]
[421706870,1778049243000,-2042.51,0.00042465,120]
[421706876,1778049243000,-197.62764003,0.00042465,120]
[421706874,1778049243000,-2042.51,0.00042465,120]
[421706933,1778049244000,-1202.39,0.00042465,120]
[421706932,1778049244000,-1202.39,0.00042465,120]
[421706940,1778049244000,-1202.39,0.00042465,120]
[421706939,1778049244000,-1202.39,0.00042465,120]
[421706938,1778049244000,-1202.39,0.00042465,120]
[421706935,1778049244000,-1202.39,0.00042465,120]
[421706943,1778049244000,-1202.39,0.00042465,120]
[421706936,1778049244000,-153.47537181,0.00042465,120]
[421706941,1778049244000,-1202.39,0.00042465,120]
[421706929,1778049244000,-1202.39,0.00042465,120]
[421706934,1778049244000,-1202.39,0.00042465,120]
[421706937,1778049244000,-1202.39,0.00042465,120]
[421706952,1778049244000,-193.66176302,0.00042465,120]
[421706945,1778049244000,-1202.39,0.00042465,120]
[421706948,1778049244000,-158.09513822,0.00042465,120]
[421706949,1778049244000,-500.0,0.00042465,120]
[421706947,1778049244000,-1202.55899964,0.00042465,120]
[421706946,1778049244000,-1202.39,0.00042465,120]
[421706950,1778049244000,-316.45412614,0.00042465,120]
[421706944,1778049244000,-1202.39,0.00042465,120]
[421706954,1778049244000,-500.0,0.00042465,120]
[421706953,1778049244000,-500.0,0.00042465,120]
[421706955,1778049244000,-500.0,0.00042465,120]
[421706931,1778049244000,-1202.39,0.00042465,120]
[421706942,1778049244000,-1202.39,0.00042465,120]
[421706930,1778049244000,-1202.39,0.00042465,120]
[421706908,1778049244000,-312.50344782,0.00042465,120]
[421706927,1778049244000,-1202.39,0.00042465,120]
[421706951,1778049244000,-500.0,0.00042465,120]
[421706906,1778049244000,-294.8269739,0.00042465,120]
[421706904,1778049244000,-158.12039575,0.00042465,120]
[421706903,1778049244000,-193.30169017,0.00042465,120]
[421706907,1778049244000,-215.7741303,0.00042465,120]
[421706902,1778049244000,-218.63396636,0.00042465,120]
[421706905,1778049244000,-154.48436396,0.00042465,120]
[421706909,1778049244000,-340.74527831,0.00042465,120]
[421706910,1778049244000,-188.07897027,0.00042465,120]
[421706919,1778049244000,-500.0,0.00042465,120]
[421706913,1778049244000,-500.0,0.00042465,120]
[421706928,1778049244000,-1202.39,0.00042465,120]
[421706911,1778049244000,-500.0,0.00042465,120]
[421706917,1778049244000,-332.05541535,0.00042465,120]
[421706914,1778049244000,-346.03763521,0.00042465,120]
[421706916,1778049244000,-215.76520577,0.00042465,120]
[421706918,1778049244000,-203.53765153,0.00042465,120]
[421706920,1778049244000,-500.0,0.00042465,120]
[421706921,1778049244000,-507.37462273,0.00042465,120]
[421706923,1778049244000,-1202.39,0.00042465,120]
[421706922,1778049244000,-305.1814995,0.00042465,120]
[421706924,1778049244000,-1202.39,0.00042465,120]
[421706925,1778049244000,-1202.39,0.00042465,120]
[421706926,1778049244000,-1202.39,0.00042465,120]
[421706915,1778049244000,-500.0,0.00042465,120]
[421706957,1778049244000,-500.0,0.00042465,120]
[421706978,1778049244000,-500.0,0.00042465,120]
[421706959,1778049244000,-194.11605646,0.00042465,120]
[421706989,1778049244000,-169.63198966,0.00042465,7]
[421706987,1778049244000,-500.0,0.00042465,120]
[421706988,1778049244000,-215.24069481,0.00042465,120]
[421706985,1778049244000,-500.0,0.00042465,120]
[421706990,1778049244000,-500.0,0.00042465,120]
[421706992,1778049244000,-500.0,0.00042465,120]
[421706993,1778049244000,-164.12030291,0.00042465,120]
[421706996,1778049244000,-500.0,0.00042465,120]
[421707003,1778049244000,-500.0,0.00042465,120]
[421706995,1778049244000,-500.0,0.00042465,120]
[421706998,1778049244000,-500.0,0.00042465,120]
[421706982,1778049244000,-500.0,0.00042465,120]
[421706994,1778049244000,-500.0,0.00042465,120]
[421707000,1778049244000,-500.0,0.00042465,120]
[421706997,1778049244000,-205.73831304,0.00042465,120]
[421706999,1778049244000,-500.0,0.00042465,120]
[421707002,1778049244000,-500.0,0.00042465,120]
[421707005,1778049244000,-500.0,0.00042465,120]
[421707004,1778049244000,-500.0,0.00042465,120]
[421707007,1778049244000,-500.0,0.00042465,120]
[421707008,1778049244000,-500.0,0.00042465,120]
[421707006,1778049244000,-500.0,0.00042465,120]
[421707011,1778049244000,-500.0,0.00042465,120]
[421707010,1778049244000,-500.0,0.00042465,120]
[421707001,1778049244000,-500.0,0.00042465,120]
[421706984,1778049244000,-500.0,0.00042465,120]
[421706965,1778049244000,-170.35280383,0.00042465,120]
[421706983,1778049244000,-500.0,0.00042465,120]
[421706967,1778049244000,-500.0,0.00042465,120]
[421706966,1778049244000,-500.0,0.00042465,120]
[421706956,1778049244000,-500.0,0.00042465,120]
[421706958,1778049244000,-500.0,0.00042465,120]
[421706960,1778049244000,-500.0,0.00042465,120]
[421706961,1778049244000,-500.0,0.00042465,120]
[421706986,1778049244000,-500.0,0.00042465,120]
[421706963,1778049244000,-209.57681152,0.00042465,120]
[421706962,1778049244000,-500.0,0.00042465,120]
[421706968,1778049244000,-261.90593041,0.00042465,120]
[421706972,1778049244000,-500.0,0.00042465,120]
[421706971,1778049244000,-500.0,0.00042465,120]
[421706964,1778049244000,-561.39774132,0.00042465,120]
[421706973,1778049244000,-500.0,0.00042465,120]
[421706969,1778049244000,-500.0,0.00042465,120]
[421706976,1778049244000,-500.0,0.00042465,120]